bitfinex/quotes_ETHUSD_20241104
["timestamp","ask_amount","ask_price","bid_price","bid_amount"]
[1730730183943,4.06308,2461.2,2460.8,4.89299]
[1730730186049,0.0460712,2461.1,2460.8,4.89299]
[1730730186369,4.06362,2460.9,2460.5,4.06419]
[1730730186854,0.04540973,2460.8,2460.3,5.28494688]
[1730730187058,4.10913973,2460.8,2460.4,4.06433]
[1730730187373,4.10945839,2460.7,2460.3,1.22052688]
[1730730187571,4.10945839,2460.7,2460.3,5.28503688]
[1730730187941,4.10945839,2460.7,2460.3,1.22052688]
[1730730188165,4.06429,2460.5,2460.3,0.41512688]
[1730730188820,0.04545998,2460.4,2460.3,0.41512688]
[1730730189257,0.04545998,2460.4,2460.3,0.64702208]
[1730730189448,11.21780442,2460.8,2460.4,4.0643]
[1730730189651,1.12178044,2460.7,2460.4,4.0643]
[1730730190371,5.32582586,2460.9,2460.5,0.788]
[1730730190576,4.06373,2460.8,2460.5,0.788]
[1730730193250,4.06373,2460.8,2460.4,4.06429]
[1730730193449,5.32589586,2460.8,2460.5,0.23201815]
[1730730193615,5.32589586,2460.8,2460.4,4.06429]
[1730730194017,1.26216586,2460.8,2460.5,4.06421]
[1730730194459,1.26216586,2460.8,2460.4,4.06436]
[1730730194659,1.26216586,2460.8,2460.5,0.23206648]
[1730730194956,1.26216586,2460.8,2460.4,4.06436]
[1730730195161,1.26216586,2460.8,2460.6,4.8694]
[1730730195327,1.26216586,2460.9,2460.7,4.06381]
[1730730195542,1.26216586,2461.0,2460.7,4.06381]
[1730730195743,1.26216586,2461.0,2460.8,4.06371]
[1730730195944,1.26216586,2461.1,2460.7,4.06385]
[1730730196149,1.26216586,2461.1,2460.7,4.06375]
[1730730197462,1.26216586,2461.1,2460.8,4.0637]
[1730730197972,1.26216586,2461.0,2460.8,4.0637]
[1730730198140,1.26216586,2461.1,2460.8,4.0637]
[1730730198766,5.32538586,2461.1,2460.7,4.06385]
[1730730199079,2.58009926,2461.1,2460.8,0.23207383]
[1730730199235,4.06366,2460.9,2460.6,0.8055]
[1730730199744,4.06366,2460.9,2460.7,0.23211741]
[1730730199931,4.06366,2460.9,2460.6,0.8055]
[1730730200130,4.06365,2460.9,2460.7,0.23211572]
[1730730200333,4.06365,2460.9,2460.6,0.8055]
[1730730200334,1.10721037,2460.9,2460.6,4.86953]
[1730730200572,5.32556586,2461.0,2460.7,0.23214175]
[1730730200891,5.32531586,2461.2,2460.9,0.7635]
[1730730201881,9.38850586,2461.2,2460.9,0.7635]
[1730730202438,9.38850586,2461.2,2460.7,1.16480478]
[1730730202439,4.06324,2461.1,2460.7,1.16480478]
[1730730202742,4.06338,2461.0,2460.8,0.23206594]
[1730730202956,7.22589523,2461.1,2460.7,0.7935]
[1730730203156,11.28921523,2461.1,2460.7,0.7935]
[1730730203340,7.22589523,2461.1,2460.8,0.23205427]
[1730730203539,0.8908783,2461.0,2460.7,0.7935]
[1730730203741,2.05546586,2461.1,2460.8,4.2957373]
[1730730203984,5.32540586,2461.1,2460.7,4.85734]
[1730730204139,5.32540586,2461.1,2460.8,0.23204791]
[1730730204339,5.32540586,2461.1,2460.7,4.85734]
[1730730204682,5.32540586,2461.1,2460.8,0.23203271]
[1730730204980,5.32540586,2461.1,2460.7,4.85734]
[1730730204981,1.26216586,2461.1,2460.7,4.85734]
[1730730205135,1.26216586,2461.1,2460.8,0.23202768]
[1730730205341,1.26216586,2461.1,2460.8,4.06366]
[1730730205665,9.38842586,2461.2,2460.8,4.06366]
[1730730206234,1.26216586,2461.1,2460.8,4.06366]
[1730730206438,4.06323,2461.1,2460.7,4.85735]
[1730730206639,4.06323,2461.1,2460.8,0.23201596]
[1730730206895,5.32523586,2461.2,2460.8,4.06363]
[1730730207045,5.32523586,2461.2,2460.9,0.2320192]
[1730730207241,1.26216586,2461.2,2460.9,4.06346]
[1730730207438,5.32522586,2461.2,2460.8,4.06363]
[1730730207840,4.06323,2461.1,2460.7,4.85735]
[1730730208037,4.06355,2460.9,2460.8,0.23200903]
[1730730208242,4.0634,2461.0,2460.6,4.06404]
[1730730208481,8.12691,2461.0,2460.7,0.23201971]
[1730730208683,4.06357,2460.9,2460.8,0.23201971]
[1730730208851,4.06357,2460.9,2460.6,0.37124918]
[1730730209041,4.06357,2460.9,2460.7,0.23201968]
[1730730209243,4.06357,2460.9,2460.6,0.37124951]
[1730730209553,4.06357,2460.9,2460.7,0.23202827]
[1730730209761,5.77068359,2460.9,2460.8,0.23202827]
[1730730210168,5.77068359,2460.9,2460.5,0.41515078]
[1730730210169,4.06388,2460.7,2460.5,0.41515078]
[1730730210470,4.06388,2460.7,2460.6,0.23208844]
[1730730210695,4.06388,2460.7,2460.5,0.41515078]
[1730730211406,4.06388,2460.7,2460.6,0.23208342]
[1730730212369,5.18118221,2460.7,2460.6,0.23208342]
[1730730213271,5.32591586,2460.8,2460.5,0.41515078]
[1730730213608,5.32591586,2460.8,2460.6,0.23209153]
[1730730213812,5.32591586,2460.8,2460.5,0.41515078]
[1730730213981,5.32591586,2460.8,2460.6,0.23208301]
[1730730214352,5.32591586,2460.8,2460.5,0.41515078]
[1730730214463,5.32591586,2460.8,2460.6,0.23208409]
[1730730214667,5.32591586,2460.8,2460.5,0.41515078]
[1730730214905,5.32591586,2460.8,2460.6,0.23208393]
[1730730215107,5.32591586,2460.8,2460.5,0.41515078]
[1730730215407,5.32591586,2460.8,2460.6,0.23209201]
[1730730215614,5.32591586,2460.8,2460.5,0.41515078]
[1730730215908,9.38976586,2460.8,2460.6,0.23208443]
[1730730216076,0.04422713,2460.7,2460.5,0.41515078]
[1730730216278,0.04422713,2460.7,2460.6,0.23208471]
[1730730216798,9.38976586,2460.8,2460.6,0.23208471]
[1730730216965,5.37027299,2460.7,2460.5,0.41515078]
[1730730217370,4.10810713,2460.7,2460.5,0.41515078]
[1730730217717,4.10810713,2460.7,2460.6,0.23209696]
[1730730218382,5.37027299,2460.7,2460.6,0.23209696]
[1730730218783,6.80153494,2460.7,2460.6,0.23209696]
[1730730219000,5.53936908,2460.7,2460.6,0.23209696]
[1730730219220,6.80153494,2460.7,2460.6,0.23209696]
[1730730219571,1.30639299,2460.7,2460.6,0.23209696]
[1730730219815,0.04422713,2460.7,2460.6,1.00539696]
[1730730219967,0.04422713,2460.7,2460.6,5.06943696]
[1730730220168,1.26216586,2460.8,2460.6,5.06943696]
[1730730220404,1.26216586,2460.9,2460.7,0.23209696]
[1730730220608,1.26216586,2460.9,2460.6,4.83734]
[1730730220812,1.26216586,2460.9,2460.7,0.23214897]
[1730730220970,1.26216586,2460.9,2460.6,4.83734]
[1730730221166,1.26216586,2460.9,2460.7,0.23214986]
[1730730221379,1.26216586,2460.8,2460.6,0.7733]
[1730730221582,1.26216586,2460.8,2460.7,0.23215927]
[1730730221982,1.68288781,2460.9,2460.7,0.23215927]
[1730730221983,1.26216586,2460.9,2460.7,0.23215927]
[1730730222306,1.26216586,2460.9,2460.6,4.83728]
[1730730222507,1.26216586,2460.9,2460.7,0.23217604]
[1730730222813,1.26216586,2460.9,2460.6,4.83728]
[1730730222972,1.26216586,2460.9,2460.7,0.23217535]
[1730730223312,1.26216586,2460.9,2460.6,4.83728]
[1730730223474,1.26216586,2460.9,2460.7,0.23218808]
[1730730223673,5.32571586,2460.9,2460.6,0.7733]
[1730730224007,1.26216586,2460.8,2460.7,0.23218595]
[1730730224211,1.26216586,2460.9,2460.7,0.23218595]
[1730730224371,1.26216586,2460.9,2460.8,0.23218595]
[1730730224570,1.26216586,2460.9,2460.6,4.83728]
[1730730224790,1.26216586,2460.9,2460.7,0.23219041]
[1730730225075,1.26216586,2460.9,2460.6,4.83728]
[1730730225273,1.26216586,2460.9,2460.7,0.23218963]
[1730730225522,1.26216586,2460.9,2460.6,0.7733]
[1730730225672,5.32571586,2460.9,2460.7,0.23219653]
[1730730226012,5.32571586,2460.9,2460.8,0.23219131]
[1730730226219,6.64384871,2460.9,2460.6,0.7733]
[1730730226375,5.32571586,2460.9,2460.7,0.23219857]
[1730730226711,5.32571586,2460.9,2460.8,0.23219349]
[1730730226922,1.26216586,2460.9,2460.8,0.23219349]
[1730730227214,1.26216586,2460.9,2460.6,4.83734]
[1730730227419,1.26216586,2460.9,2460.7,0.23220174]
[1730730227585,1.26216586,2460.9,2460.8,0.23220174]
[1730730227910,1.26216586,2460.9,2460.8,0.23219442]
[1730730228077,5.74630781,2461.0,2460.6,4.83734]
[1730730228276,1.26604409,2460.9,2460.7,0.23219233]
[1730730228477,1.26604409,2460.9,2460.6,4.83723]
[1730730228680,1.26604409,2460.9,2460.7,0.23219718]
[1730730228905,1.26604409,2460.9,2460.8,0.23219718]
[1730730229104,1.26604409,2460.9,2460.8,0.23219599]
[1730730229714,1.26604409,2460.9,2460.6,4.83723]
[1730730229918,1.26604409,2460.9,2460.7,0.23220197]
[1730730230212,1.26604409,2460.9,2460.6,4.83723]
[1730730230413,1.26604409,2460.9,2460.7,0.2321935]
[1730730230715,1.26604409,2460.9,2460.8,0.2321935]
[1730730230927,1.26604409,2461.0,2460.8,4.2958335]
[1730730231220,1.26604409,2461.0,2460.8,4.06364]
[1730730231221,0.04440978,2460.9,2460.8,4.06364]
[1730730231379,0.04440978,2460.9,2460.8,4.29582473]
[1730730231579,0.04440978,2460.9,2460.8,5.43645194]
[1730730231792,1.26604409,2461.1,2460.8,5.43645194]
[1730730231996,1.26604409,2461.0,2460.9,0.23218473]
[1730730232201,1.26604409,2461.0,2460.8,0.7691]
[1730730232795,1.26604409,2461.0,2460.9,0.23221376]
[1730730234012,6.11602409,2461.0,2460.9,0.23221376]
[1730730234215,4.06355,2460.9,2460.6,0.37157053]
[1730730234522,1.26631384,2460.8,2460.7,0.23223342]
[1730730236895,1.26631384,2460.8,2460.7,0.60386484]
[1730730238245,1.26631384,2460.8,2460.6,4.06402]
[1730730238452,1.26631384,2460.8,2460.7,0.37167871]
[1730730238619,1.26631384,2460.8,2460.7,0.60397113]
[1730730238818,1.26631384,2460.8,2460.7,0.23228978]
[1730730239059,1.26631384,2460.8,2460.7,0.60397365]
[1730730239785,1.26631384,2460.8,2460.7,0.60398308]
[1730730240067,1.26631384,2460.8,2460.7,0.23228978]
[1730730240068,6.73763874,2460.8,2460.7,0.23228978]
[1730730241282,2.67392874,2460.8,2460.7,0.23228978]
[1730730241447,1.26692006,2460.8,2460.7,0.23228978]
[1730730242477,1.26692006,2460.8,2460.7,0.60400103]
[1730730242677,1.26692006,2460.8,2460.7,0.60399997]
[1730730243690,1.26692006,2460.8,2460.7,0.6040576]
[1730730243979,1.26706357,2460.8,2460.7,0.23230081]
[1730730244180,1.68288781,2460.8,2460.7,0.23230081]
[1730730244538,1.26715991,2460.8,2460.7,0.60401638]
[1730730245292,1.68288781,2460.9,2460.7,0.60401638]
[1730730245293,1.26715991,2460.9,2460.7,0.60401638]
[1730730245583,1.26715991,2461.0,2460.8,4.66772638]
[1730730245877,1.26715991,2461.0,2460.9,9.29766902]
[1730730246178,1.26715991,2461.1,2461.0,4.06338]
[1730730246482,1.26715991,2461.1,2461.0,4.29568081]
[1730730247757,1.26715991,2461.1,2461.0,4.6672833]
[1730730248079,1.26715991,2461.2,2461.0,4.74854452]
[1730730248451,1.26715991,2461.3,2461.2,4.06305]
[1730730248718,1.26715991,2461.4,2461.3,4.06289]
[1730730248873,1.68288781,2461.5,2461.4,4.06272]
[1730730248874,1.26718151,2461.5,2461.4,4.06272]
[1730730249075,1.26718151,2461.5,2461.4,4.29502081]
[1730730249313,1.26718151,2461.6,2461.4,4.29502081]
[1730730249612,1.26718151,2461.6,2461.4,4.86952]
[1730730249918,1.26718151,2461.5,2461.2,0.7658]
[1730730250229,1.26718151,2461.5,2461.3,0.23197846]
[1730730250404,1.26718151,2461.6,2461.4,4.29469846]
[1730730250603,1.26718151,2461.6,2461.2,8.70064264]
[1730730250913,1.26718151,2461.6,2461.4,4.06266]
[1730730251882,6.56661781,2461.8,2461.4,4.06266]
[1730730251883,1.26718151,2461.7,2461.4,4.06266]
[1730730252155,1.26718151,2461.7,2461.5,4.06256]
[1730730252675,1.26718151,2461.8,2461.5,0.7867]
[1730730252874,1.26718151,2461.8,2461.5,4.84925]
[1730730253230,1.26718151,2461.8,2461.6,4.06233]
[1730730253549,1.26718151,2461.9,2461.7,4.06213]
[1730730253747,1.26718151,2462.0,2461.7,4.06213]
[1730730254226,1.26718151,2461.9,2461.5,8.72109264]
[1730730254433,1.26718151,2462.0,2461.6,4.06223]
[1730730254676,1.26718151,2462.0,2461.7,4.06221]
[1730730254874,1.26718151,2462.0,2461.7,4.14344624]
[1730730255172,5.32893151,2462.0,2461.6,4.06223]
[1730730255345,5.32887151,2462.1,2461.6,4.06223]
[1730730255671,5.32887151,2462.1,2461.7,4.06217]
[1730730256381,6.10227151,2462.2,2461.8,4.82753]
[1730730256557,6.10227151,2462.2,2461.8,4.9087648]
[1730730256754,1.26718151,2462.1,2461.8,0.7655]
[1730730256958,4.06174,2462.0,2461.6,0.7655]
[1730730257445,4.06174,2462.0,2461.5,4.06243]
[1730730257643,4.06212,2461.8,2461.4,4.06268]
[1730730257838,4.06212,2461.8,2461.3,4.84466]
[1730730257839,8.12433,2461.8,2461.3,4.84466]
[1730730258286,4.06212,2461.8,2461.3,4.84466]
[1730730258476,4.06234,2461.7,2461.3,0.7819]
[1730730258668,4.06234,2461.7,2461.3,4.84478]
[1730730259545,4.06212,2461.8,2461.3,4.92603021]
[1730730259770,4.06212,2461.8,2461.3,4.84478]
[1730730260758,4.06234,2461.7,2461.3,4.84478]
[1730730261082,4.10742426,2461.7,2461.3,4.84478]
[1730730261438,4.10742426,2461.7,2461.3,4.84471]
[1730730261439,0.04508426,2461.7,2461.3,4.84471]
[1730730261678,4.06209,2461.8,2461.4,4.06272]
[1730730261850,0.04502694,2461.6,2461.4,4.06272]
[1730730262059,0.8227,2461.9,2461.4,4.14387847]
[1730730262060,4.88468,2461.9,2461.4,4.14387847]
[1730730262390,0.04496962,2461.5,2461.4,4.14387375]
[1730730262985,4.88468,2461.9,2461.4,8.12523]
[1730730263282,5.32899151,2462.0,2461.4,4.8784]
[1730730263494,0.04514158,2461.8,2461.6,8.12472]
[1730730263785,5.32899151,2462.0,2461.6,4.06233]
[1730730263986,0.04511789,2461.7,2461.6,4.06233]
[1730730264283,5.32899151,2462.0,2461.6,4.06233]
[1730730264496,0.04511789,2461.7,2461.6,4.06233]
[1730730264700,5.32899151,2462.0,2461.6,4.06233]
[1730730264853,0.04511789,2461.7,2461.6,4.06233]
[1730730265183,5.32899151,2462.0,2461.6,4.06233]
[1730730265367,4.06181,2462.0,2461.6,4.06233]
[1730730265567,0.04523252,2461.9,2461.6,4.06233]
[1730730266143,0.04523252,2461.9,2461.7,0.8985367]
[1730730266349,0.04523252,2461.9,2461.7,4.9606267]
[1730730266674,0.04517521,2461.8,2461.7,4.9606267]
[1730730266874,4.0619,2461.9,2461.7,0.8173]
[1730730267205,4.10727521,2461.8,2461.5,0.7503]
[1730730267675,0.04517521,2461.8,2461.5,0.7503]
[1730730267850,4.06192,2461.9,2461.5,4.81279]
[1730730268045,0.04528873,2461.8,2461.5,4.81279]
[1730730268246,0.04528873,2461.8,2461.5,0.7503]
[1730730268452,4.10736873,2461.8,2461.5,0.7503]
[1730730269651,0.04528873,2461.8,2461.5,4.81277]
[1730730270079,0.04528873,2461.8,2461.5,0.7503]
[1730730270356,4.06197,2461.9,2461.5,4.81284]
[1730730270584,0.0452146,2461.7,2461.5,0.7503]
[1730730270765,4.06209,2461.8,2461.5,0.7503]
[1730730271295,0.0452146,2461.7,2461.5,0.7503]
[1730730271654,4.06209,2461.8,2461.5,0.7503]
[1730730271854,0.0452146,2461.7,2461.5,0.7503]
[1730730272055,4.06209,2461.8,2461.5,0.7503]
[1730730272263,0.045216,2461.7,2461.6,4.06237]
[1730730272469,4.06204,2461.9,2461.5,0.7503]
[1730730272695,0.45147732,2461.8,2461.5,4.81283]
[1730730272854,0.04527332,2461.8,2461.5,4.81283]
[1730730274301,0.04527332,2461.8,2461.6,0.23183409]
[1730730274499,0.04527332,2461.8,2461.5,4.81283]
[1730730274676,0.04527332,2461.8,2461.6,0.2318388]
[1730730274862,0.04527332,2461.8,2461.5,4.81283]
[1730730275063,0.04527332,2461.8,2461.6,0.23183494]
[1730730275365,0.04527332,2461.8,2461.5,4.81283]
[1730730275584,0.04527332,2461.8,2461.6,0.23195625]
[1730730275900,0.04527332,2461.8,2461.5,4.81283]
[1730730276070,0.04527332,2461.8,2461.6,0.23195539]
[1730730276272,0.04527332,2461.8,2461.7,0.23195539]
[1730730278733,4.06175,2462.0,2461.7,0.23195539]
[1730730278931,4.06175,2462.0,2461.8,0.23195539]
[1730730279081,0.04535035,2461.9,2461.6,5.72810014]
[1730730279281,0.04535035,2461.9,2461.7,0.23220444]
[1730730279517,0.04535035,2461.9,2461.8,0.23220444]
[1730730280827,4.10725035,2461.9,2461.8,0.23220444]
[1730730280999,4.10725035,2461.9,2461.5,0.7503]
[1730730281194,5.12725854,2461.9,2461.6,0.60384024]
[1730730281432,5.12725854,2461.9,2461.7,0.2322385]
[1730730281597,5.12725854,2461.9,2461.8,0.2322385]
[1730730281982,5.12725854,2461.9,2461.5,4.81279]
[1730730282190,5.12725854,2461.9,2461.6,0.6038477]
[1730730282395,5.12725854,2461.9,2461.7,0.23224217]
[1730730282729,4.85745035,2461.9,2461.8,0.23224217]
[1730730282880,4.85745035,2461.9,2461.4,6.1438886]
[1730730282881,4.06208,2461.8,2461.4,6.1438886]
[1730730283087,0.04483544,2461.7,2461.5,0.60387371]
[1730730283310,4.06208,2461.8,2461.6,0.60387371]
[1730730283518,4.06208,2461.8,2461.7,0.23225225]
[1730730284187,5.07620315,2461.8,2461.7,0.23225225]
[1730730284931,4.81214,2461.9,2461.7,0.23225225]
[1730730285100,4.81214,2461.9,2461.6,1.66574014]
[1730730285285,4.81214,2461.9,2461.7,0.23226122]
[1730730285483,4.81214,2461.9,2461.8,0.23226122]
[1730730286113,4.81214,2461.9,2461.6,1.66574014]
[1730730286426,0.7502,2461.9,2461.7,0.23227676]
[1730730286623,0.7502,2461.9,2461.8,0.23227676]
[1730730287028,4.8121,2461.9,2461.8,0.23227676]
[1730730287746,4.06208,2461.8,2461.5,0.41500667]
[1730730288111,6.07931151,2461.9,2461.5,4.47754667]
[1730730288504,10.14135151,2461.9,2461.5,4.47754667]
[1730730288947,6.07931151,2461.9,2461.5,4.47754667]
[1730730289549,10.14130151,2461.9,2461.6,0.60402706]
[1730730289726,5.32934151,2461.8,2461.7,0.23231123]
[1730730290418,4.06239,2461.6,2461.5,0.41500667]
[1730730290613,4.06239,2461.6,2461.5,1.01902667]
[1730730290856,4.06239,2461.6,2461.5,0.64731518]
[1730730291009,4.10719429,2461.6,2461.5,0.64731518]
[1730730291214,7.27494858,2461.6,2461.5,0.64731518]
[1730730291435,6.00929214,2461.6,2461.5,0.23230851]
[1730730291664,2.5179921,2461.6,2461.5,0.23230851]
[1730730291955,1.31079703,2461.6,2461.5,0.23230851]
[1730730292808,1.31079703,2461.6,2461.5,0.6039289]
[1730730293031,1.31079703,2461.6,2461.5,0.23230851]
[1730730294310,1.31079703,2461.6,2461.4,1.66574014]
[1730730294512,1.31079703,2461.6,2461.5,0.23224602]
[1730730294947,0.04480429,2461.6,2461.5,1.41104778]
[1730730296132,0.04480429,2461.6,2461.5,5.47360778]
[1730730296529,0.04480429,2461.6,2461.5,1.41104778]
[1730730298465,0.04480429,2461.6,2461.5,0.8072]
[1730730298669,0.04480429,2461.6,2461.5,1.17879838]
[1730730298965,0.04480429,2461.6,2461.5,1.41103621]
[1730730299327,0.04480429,2461.6,2461.5,0.60383621]
[1730730299654,0.04480429,2461.6,2461.5,0.37159832]
[1730730299839,0.04480429,2461.6,2461.5,0.60383611]
[1730730300426,4.87169429,2461.6,2461.5,0.23223779]
[1730730300631,5.4506915,2461.6,2461.5,0.23223779]
[1730730300834,0.04480429,2461.6,2461.5,0.23223779]
[1730730301029,4.82663,2461.8,2461.5,0.60381838]
[1730730301030,0.7645,2461.8,2461.5,0.60381838]
[1730730301269,0.7645,2461.8,2461.6,0.23223779]
[1730730301437,0.04469783,2461.7,2461.5,4.06256]
[1730730301637,4.82658,2461.8,2461.6,0.23222146]
[1730730301883,0.7645,2461.8,2461.5,4.06255]
[1730730302180,4.06196,2461.9,2461.6,0.23222583]
[1730730302378,4.82627,2462.0,2461.7,0.23222583]
[1730730302559,4.06202,2461.9,2461.6,1.66574014]
[1730730302732,4.06202,2461.9,2461.7,0.2322182]
[1730730303071,4.06202,2461.9,2461.6,1.66574014]
[1730730303272,4.06209,2461.8,2461.7,0.23222882]
[1730730303574,4.06228,2461.7,2461.3,1.17816128]
[1730730303730,4.06228,2461.7,2461.4,0.60382829]
[1730730303935,4.06228,2461.7,2461.5,0.60382829]
[1730730304131,4.86738,2461.7,2461.6,0.23223478]
[1730730304353,5.760328,2461.7,2461.6,0.23223478]
[1730730305277,5.760328,2461.7,2461.6,0.23224574]
[1730730305972,5.8051316,2461.7,2461.6,0.23224574]
[1730730306354,4.9121836,2461.7,2461.6,0.23224574]
[1730730308486,4.9121836,2461.7,2461.6,0.23223836]
[1730730308690,4.9121836,2461.7,2461.3,4.48572128]
[1730730309098,4.9121836,2461.7,2461.4,0.3715979]
[1730730309266,4.9121836,2461.7,2461.5,0.23223752]
[1730730309471,4.9121836,2461.7,2461.3,4.48572128]
[1730730309777,4.9121536,2461.7,2461.4,2.26960151]
[1730730309969,4.9121536,2461.7,2461.5,0.2322475]
[1730730310164,0.0448036,2461.7,2461.6,1.89798764]
[1730730310369,0.0448036,2461.7,2461.6,5.96037764]
[1730730310567,4.69820924,2461.9,2461.6,0.2322475]
[1730730311894,5.75253383,2461.6,2461.5,0.23226563]
[1730730312062,5.75253846,2461.6,2461.5,0.23226563]
[1730730312452,1.69002846,2461.6,2461.5,0.23226563]
[1730730313050,1.69002846,2461.6,2461.5,5.11212563]
[1730730313402,1.26718616,2461.6,2461.5,5.48373119]
[1730730313591,1.26718616,2461.7,2461.6,4.06239]
[1730730313891,1.26718616,2461.7,2461.6,5.96039577]
[1730730314104,1.26718616,2461.7,2461.6,6.33198184]
[1730730314685,1.26718616,2461.7,2461.6,5.96039577]
[1730730315109,1.26718616,2461.7,2461.6,6.33197422]
[1730730315252,1.26718616,2461.8,2461.7,4.06223]
[1730730315456,0.63623924,2461.9,2461.8,4.06206]
[1730730315659,0.63623924,2461.9,2461.8,10.244876]
[1730730315887,0.63623924,2461.9,2461.8,10.16364422]
[1730730316093,1.26718616,2462.3,2461.8,8.72780014]
[1730730316305,1.26718616,2462.4,2462.2,4.0614]
[1730730316619,1.26718616,2462.4,2462.3,6.55898014]
[1730730316768,1.26718616,2462.5,2462.3,6.55898014]
[1730730316972,1.26718616,2462.5,2462.4,0.23216937]
[1730730317244,1.26718616,2462.5,2462.3,6.55898014]
[1730730317414,1.26718616,2462.5,2462.3,4.89324]
[1730730317566,1.26718616,2462.6,2462.3,4.89324]
[1730730317770,1.26718616,2462.6,2462.4,4.37417458]
[1730730317994,1.26718616,2462.7,2462.4,4.06104]
[1730730318669,1.26718616,2462.7,2462.3,4.89317]
[1730730318920,5.32788616,2462.7,2462.4,0.2318997]
[1730730319215,5.32788616,2462.7,2462.3,4.89322]
[1730730319601,0.7699,2462.5,2462.1,4.0615]
[1730730319769,4.06113,2462.4,2462.2,0.231703]
[1730730319974,4.83082,2462.5,2462.0,4.8629]
[1730730320170,4.06124,2462.3,2462.1,0.2316289]
[1730730320419,1.95477346,2462.5,2461.9,0.3705864]
[1730730320420,4.0614,2462.2,2461.9,0.3705864]
[1730730320710,4.0614,2462.2,2461.8,4.06201]
[1730730320891,0.04351018,2462.1,2461.9,0.23161683]
[1730730321099,0.04351018,2462.1,2461.8,4.06201]
[1730730321265,0.04351018,2462.1,2461.9,0.23159477]
[1730730321471,0.04351018,2462.1,2461.8,4.06201]
[1730730321670,0.04351018,2462.1,2461.9,0.2315951]
[1730730321870,4.10515018,2462.1,2461.7,1.17190125]
[1730730322117,4.06181,2462.0,2461.8,0.23159578]
[1730730322270,4.10563391,2461.9,2461.6,0.37057376]
[1730730322474,4.10563391,2461.9,2461.4,4.48517608]
[1730730322475,4.06217,2461.8,2461.7,0.23159632]
[1730730322694,4.06256,2461.5,2461.4,0.42259608]
[1730730322919,4.10576733,2461.5,2461.4,0.42259608]
[1730730323231,4.59843406,2461.5,2461.4,0.42259608]
[1730730324128,4.06289,2461.3,2460.8,8.90056]
[1730730324337,4.06289,2461.3,2461.1,0.42272964]
[1730730324338,0.04298377,2461.2,2461.1,0.42272964]
[1730730324508,0.04298377,2461.2,2461.1,0.65433012]
[1730730324509,4.06305,2461.2,2461.1,0.65433012]
[1730730324710,4.10592161,2461.2,2461.1,0.65433012]
[1730730325016,5.00139277,2461.2,2461.1,0.42272964]
[1730730326043,5.00139277,2461.2,2460.8,0.23158876]
[1730730326242,4.06346,2461.0,2460.8,0.42275494]
[1730730326750,0.04272834,2460.9,2460.8,0.42275494]
[1730730327111,4.06355,2460.9,2460.8,0.42275494]
[1730730327341,4.10627834,2460.9,2460.8,0.42275494]
[1730730327541,4.92325717,2460.9,2460.8,0.42275494]
[1730730328602,0.85970717,2460.9,2460.8,0.42275494]
[1730730329335,4.10627834,2460.9,2460.8,0.42275494]
[1730730332554,0.04272834,2460.9,2460.8,0.42275494]
[1730730333103,4.06343,2461.0,2460.8,0.42275494]
[1730730333345,0.04161695,2460.9,2460.8,0.42275494]
[1730730334204,4.10516695,2460.9,2460.8,0.42275494]
[1730730334404,4.92202665,2460.9,2460.8,0.42275494]
[1730730334712,0.04161695,2460.9,2460.8,0.42275494]
[1730730336611,4.10516695,2460.9,2460.8,0.42275494]
[1730730336805,4.06355,2460.9,2460.8,0.42275494]
[1730730337010,4.10516846,2460.9,2460.8,0.42275494]
[1730730339519,0.04161846,2460.9,2460.8,1.18795494]
[1730730339727,4.06315,2461.2,2460.8,5.25166494]
[1730730339962,4.10477081,2461.1,2460.8,1.18795494]
[1730730340308,4.0634,2461.0,2460.8,0.42275494]
[1730730340512,0.04142607,2460.9,2460.8,0.42275494]
[1730730341610,8.1266,2461.1,2460.8,0.42275494]
[1730730341807,0.0414818,2460.9,2460.8,0.42275494]
[1730730342007,4.06323,2461.1,2460.8,0.42275494]
[1730730342247,0.0414802,2460.9,2460.8,0.42275494]
[1730730342435,4.06323,2461.1,2460.8,0.42275494]
[1730730342633,0.04149433,2460.9,2460.8,0.42275494]
[1730730342864,8.12653,2461.1,2460.8,0.42275494]
[1730730343158,4.06345,2461.0,2460.8,0.42275494]
[1730730343455,4.10505846,2460.9,2460.8,0.42275494]
[1730730346243,4.93705846,2460.9,2460.8,0.42275494]
[1730730348268,0.04150846,2460.9,2460.8,0.42275494]
[1730730349455,4.10505846,2460.9,2460.8,0.42275494]
[1730730350591,0.04150846,2460.9,2460.8,0.42275494]
[1730730352078,4.86062,2461.1,2460.8,0.42275494]
[1730730352279,0.04138812,2460.9,2460.8,0.65457233]
[1730730352489,4.86062,2461.1,2460.8,0.65484108]
[1730730352785,4.86062,2461.1,2460.8,0.42275494]
[1730730352995,0.0414455,2461.0,2460.9,0.23207908]
[1730730353352,4.1048255,2461.0,2460.9,0.23207908]
[1730730353552,0.0414455,2461.0,2460.9,0.23207908]
[1730730353987,4.1048255,2461.0,2460.9,0.23207908]
[1730730354289,0.0414455,2461.0,2460.9,0.23207908]
[1730730355185,0.0414455,2461.0,2460.9,0.60388135]
[1730730355385,0.0414455,2461.0,2460.9,4.66743135]
[1730730355589,0.0414455,2461.0,2460.9,0.60388135]
[1730730355793,4.06313,2461.2,2460.9,0.60388135]
[1730730355954,4.06313,2461.2,2461.0,0.23207908]
[1730730356265,4.06313,2461.2,2460.8,5.24630494]
[1730730356872,4.8525,2461.3,2460.9,4.06353]
[1730730357294,4.8525,2461.3,2461.0,0.60417345]
[1730730357448,4.8525,2461.3,2461.1,0.23236753]
[1730730357652,4.8525,2461.3,2461.2,0.23236707]
[1730730359567,4.8525,2461.3,2460.9,0.42276846]
[1730730359760,4.8525,2461.3,2461.0,0.60399653]
[1730730360097,4.06305,2461.2,2461.1,0.23229942]
[1730730360493,5.504605,2461.2,2461.1,0.23229942]
[1730730360658,4.06338,2461.0,2460.9,0.42276846]
[1730730361012,4.06338,2461.0,2460.9,1.02675954]
[1730730361372,4.06338,2461.0,2460.9,1.02677717]
[1730730361774,4.06338,2461.0,2460.9,0.65506501]
[1730730362077,4.06338,2461.0,2460.9,0.60398701]
[1730730363010,4.06338,2461.0,2460.6,10.43635682]
[1730730363175,4.06324,2461.1,2460.6,10.43635682]
[1730730363367,4.06324,2461.1,2460.6,10.43624682]
[1730730363574,4.0634,2461.0,2460.6,10.43624682]
[1730730363773,4.0634,2461.0,2460.7,0.60400491]
[1730730364117,4.0634,2461.0,2460.6,10.43624682]
[1730730364118,4.0634,2461.0,2460.8,0.60400491]
[1730730364289,4.0634,2461.0,2460.9,0.23230271]
[1730730364810,4.0634,2461.0,2460.9,0.60400316]
[1730730365488,4.0634,2461.0,2460.9,0.23230271]
[1730730366210,4.1017811,2461.0,2460.9,0.23230271]